[Event "Sydney Open 2019"]
[Site "Sydney"]
[Date "2019.04.27"]
[Round "8.3"]
[White "Fernandez, Daniel Howard"]
[Black "Xie, George Wendi"]
[Result "1-0"]
[WhiteElo "2467"]
[BlackElo "2359"]
[PlyCount "119"]
[EventDate "2019.04.24"]
[EventType "swiss"]
[EventCountry "AUS"]
[TimeControl "5400+30"]
[WhiteClock "0:03:49"]
[BlackClock "1:00:42"]

1. Nf3 {[%emt 0:01:53]} e6 {[%emt 0:00:00]} 2. g3 {[%emt 0:00:13]} b5 {[%emt 0:01:41]} 3. Bg2 {[%emt 0:01:40]} Bb7 {[%emt 0:00:06]} 4. d3 {[%emt 0:00:04]} Nf6 {[%emt 0:02:56]} 5. c4 {[%emt 0:00:33]} bxc4 {[%emt 0:02:28]} 6. dxc4 {[%emt 0:00:02]} Bb4+ {[%emt 0:00:03]} 7. Kf1 {[%emt 0:02:43]} a5 {[%emt 0:00:23]} 8. Ne5 {[%emt 0:01:01]} Qc8 {[%emt 0:01:43]} 9. Nd3 {[%emt 0:01:12]} h6 {[%emt 0:10:46]} 10. b3 {[%emt 0:00:09]} O-O {[%emt 0:21:17]} 11. Bb2 {[%emt 0:00:55]} Be7 {[%emt 0:00:03]} 12. Nc3 {[%emt 0:00:37]} Bxg2+ {[%emt 0:00:28]} 13. Kxg2 {[%emt 0:00:03]} Qb7+ {[%emt 0:00:03]} 14. f3 {[%emt 0:00:23]} d5 {[%emt 0:00:02]} 15. cxd5 {[%emt 0:00:22]} exd5 {[%emt 0:00:04]} 16. Na4 {[%emt 0:00:53]} Nbd7 {[%emt 0:00:18]} 17. Rc1 {[%emt 0:00:33]} Rfe8 {[%emt 0:05:04]} 18. Re1 {[%emt 0:01:57]} Bb4 {[%emt 0:01:03]} 19. Nxb4 {[%emt 0:00:20]} axb4 {[%emt 0:00:03]} 20. Qc2 {[%emt 0:00:10]} Qa6 {[%emt 0:08:22]} 21. Qd3 {[%emt 0:00:12]} Qxd3 {[%emt 0:04:37]} 22. exd3 {[%emt 0:00:01]} Rxe1 {[%emt 0:00:04]} 23. Rxe1 {[%emt 0:00:10]} Nb6 {[%emt 0:00:01]} 24. Nxb6 {[%emt 0:01:13]} cxb6 {[%emt 0:00:03]} 25. Ra1 {[%emt 0:02:13]} Rc8 {[%emt 0:03:33]} 26. Rc1 {[%emt 0:07:25]} Ra8 {[%emt 0:00:08]} 27. Kh3 {[%emt 0:01:16]} Rxa2 {[%emt 0:02:05]} 28. Rc8+ {[%emt 0:00:02]} Kh7 {[%emt 0:00:06]} 29. Bxf6 {[%emt 0:00:06]} gxf6 {[%emt 0:00:03]} 30. Rc6 {[%emt 0:00:41]} Rd2 {[%emt 0:09:53]} 31. Rxf6 {[%emt 0:00:18]} Kg7 {[%emt 0:00:02]} 32. Rxb6 {[%emt 0:01:35]} Rxd3 {[%emt 0:00:03]} 33. Rxb4 {[%emt 0:00:08]} Rxf3 {[%emt 0:00:02]} 34. Kg4 {[%emt 0:00:10]} Rf6 {[%emt 0:04:43]} 35. Rf4 {[%emt 0:02:16]} Rd6 {[%emt 0:00:07]} 36. Kf5 {[%emt 0:00:54]} Re6 {[%emt 0:07:45]} 37. Rd4 {[%emt 0:04:52]} Re2 {[%emt 0:00:06]} 38. h3 {[%emt 0:00:50]} Re3 {[%emt 0:00:21]} 39. b4 {[%emt 1:08:42]} h5 {[%emt 0:01:45]} 40. Kf4 {[%emt 0:00:00]} Rb3 {[%emt 0:00:05]} 41. Ke5 {[%emt 0:00:00]} Rxg3 {[%emt 0:00:06]} 42. h4 {[%emt 0:00:00]} Rb3 {[%emt 0:06:16]} 43. Kxd5 {[%emt 0:00:00]} Kf6 {[%emt 0:00:03]} 44. Kc5 {[%emt 0:00:00]} Ke6 {[%emt 0:01:26]} 45. b5 {[%emt 0:00:00]} Rc3+ {[%emt 0:00:24]} 46. Kb4 {[%emt 0:00:00]} Rc1 {[%emt 0:00:56]} 47. b6 {[%emt 0:00:00]} f5 {[%emt 0:00:41]} 48. Rd8 {[%emt 0:00:00]} Rb1+ {[%emt 0:02:01]} 49. Kc5 {[%emt 0:00:00]} Rc1+ {[%emt 0:00:02]} 50. Kb5 {[%emt 0:00:00]} Rb1+ {[%emt 0:00:02]} 51. Kc6 {[%emt 0:00:00]} Rc1+ {[%emt 0:00:02]} 52. Kb5 {[%emt 0:00:00]} Rb1+ {[%emt 0:00:02]} 53. Ka6 {[%emt 0:00:00]} Ra1+ {[%emt 0:00:03]} 54. Kb7 {[%emt 0:00:00]} f4 {[%emt 0:04:22]} 55. Rf8 {[%emt 0:00:00]} Ke5 {[%emt 0:02:36]} 56. Kb8 {[%emt 0:00:00]} Ke4 {[%emt 0:01:44]} 57. b7 {[%emt 0:00:00]} Kf3 {[%emt 0:00:32]} 58. Kc7 {[%emt 0:00:00]} Ra7 {[%emt 0:00:59]} 59. Rg8 {[%emt 0:00:00]} Ke2 {[%emt 0:00:59]} 60. Rg5 {[%emt 0:00:00]} 1-0

[Event "Sydney Open 2019"]
[Site "Sydney"]
[Date "2019.04.27"]
[Round "8.4"]
[White "Winkelman, Albert"]
[Black "Padmini, Rout"]
[Result "0-1"]
[WhiteElo "2212"]
[BlackElo "2364"]
[PlyCount "176"]
[EventDate "2019.04.24"]
[EventType "swiss"]
[EventCountry "AUS"]
[TimeControl "5400+30"]
[WhiteClock "0:05:29"]
[BlackClock "0:10:00"]

1. e4 {[%emt 0:00:00]} e5 {[%emt 0:00:00]} 2. Nf3 {[%emt 0:00:00]} Nc6 {[%emt 0:00:00]} 3. Bb5 {[%emt 0:00:00]} Nf6 {[%emt 0:00:00]} 4. d3 {[%emt 0:00:05]} Bc5 {[%emt 0:00:14]} 5. c3 {[%emt 0:00:36]} O-O {[%emt 0:00:28]} 6. O-O {[%emt 0:00:33]} d6 {[%emt 0:01:00]} 7. Re1 {[%emt 0:01:27]} Ne7 {[%emt 0:02:26]} 8. Nbd2 {[%emt 0:11:08]} c6 {[%emt 0:01:15]} 9. Ba4 {[%emt 0:00:11]} Ng6 {[%emt 0:00:28]} 10. Nf1 {[%emt 0:01:20]} Bb6 {[%emt 0:04:21]} 11. Ng3 {[%emt 0:02:02]} d5 {[%emt 0:01:58]} 12. h3 {[%emt 0:27:11]} h6 {[%emt 0:05:21]} 13. exd5 {[%emt 0:16:22]} Nxd5 {[%emt 0:00:22]} 14. d4 {[%emt 0:02:29]} exd4 {[%emt 0:00:37]} 15. Nxd4 {[%emt 0:00:12]} Qf6 {[%emt 0:11:46]} 16. Ne4 {[%emt 0:02:45]} Qh4 {[%emt 0:01:31]} 17. Nd6 {[%emt 0:07:58]} Bxd4 {[%emt 0:07:16]} 18. cxd4 {[%emt 0:00:54]} Rd8 {[%emt 0:01:18]} 19. Nxc8 {[%emt 0:01:00]} Raxc8 {[%emt 0:00:12]} 20. Bc2 {[%emt 0:01:22]} Rd6 {[%emt 0:10:03]} 21. Be3 {[%emt 0:03:13]} Rcd8 {[%emt 0:01:02]} 22. Qe2 {[%emt 0:02:47]} Nf8 {[%emt 0:08:12]} 23. Rad1 {[%emt 0:03:16]} Ne6 {[%emt 0:02:04]} 24. Qd3 {[%emt 0:00:49]} Nf6 {[%emt 0:02:17]} 25. Qb3 {[%emt 0:01:02]} b6 {[%emt 0:02:50]} 26. Qa3 {[%emt 0:01:32]} R8d7 {[%emt 0:00:52]} 27. Bf5 {[%emt 0:01:27]} g6 {[%emt 0:03:38]} 28. Bxe6 {[%emt 0:00:46]} Rxe6 {[%emt 0:00:05]} 29. Rc1 {[%emt 0:01:39]} Nd5 {[%emt 0:00:45]} 30. Qa4 {[%emt 0:01:59]} Rde7 {[%emt 0:14:39]} 31. Rf1 {[%emt 0:08:46]} c5 {[%emt 0:04:23]} 32. Qd1 {[%emt 0:00:17]} Rxe3 {[%emt 0:07:21]} 33. fxe3 {[%emt 0:00:06]} Nxe3 {[%emt 0:00:05]} 34. Qe1 {[%emt 0:00:46]} Qg5 {[%emt 0:00:06]} 35. Qf2 {[%emt 0:00:46]} Nxf1 {[%emt 0:00:17]} 36. Rxf1 {[%emt 0:00:09]} cxd4 {[%emt 0:04:55]} 37. Qxd4 {[%emt 0:00:07]} Re2 {[%emt 0:00:10]} 38. Rf2 {[%emt 0:01:15]} Qc1+ {[%emt 0:00:41]} 39. Kh2 {[%emt 0:00:34]} Qc7+ {[%emt 0:00:55]} 40. Kg1 {[%emt 0:00:35]} Rxf2 {[%emt 0:01:09]} 41. Kxf2 {[%emt 0:00:05]} h5 {[%emt 0:00:28]} 42. Kf3 {[%emt 0:00:44]} Qe7 {[%emt 0:01:31]} 43. h4 {[%emt 0:00:36]} Qe6 {[%emt 0:00:40]} 44. a3 {[%emt 0:00:25]} Qf5+ {[%emt 0:00:31]} 45. Kg3 {[%emt 0:00:26]} Kh7 {[%emt 0:00:41]} 46. Kh2 {[%emt 0:00:27]} Qg4 {[%emt 0:01:21]} 47. Qf6 {[%emt 0:00:09]} Qe6 {[%emt 0:00:07]} 48. Qd4 {[%emt 0:00:26]} Qb3 {[%emt 0:00:41]} 49. Qe5 {[%emt 0:00:57]} a5 {[%emt 0:00:37]} 50. Qd4 {[%emt 0:00:32]} b5 {[%emt 0:00:15]} 51. Qe5 {[%emt 0:00:28]} a4 {[%emt 0:00:20]} 52. Qf6 {[%emt 0:00:35]} Qd5 {[%emt 0:00:05]} 53. Qc3 {[%emt 0:00:27]} Kg8 {[%emt 0:00:17]} 54. Qc8+ {[%emt 0:00:31]} Kg7 {[%emt 0:00:05]} 55. Qc3+ {[%emt 0:00:28]} Kf8 {[%emt 0:00:07]} 56. Qf6 {[%emt 0:00:38]} Ke8 {[%emt 0:00:08]} 57. g3 {[%emt 0:00:30]} Kd7 {[%emt 0:00:07]} 58. Qc3 {[%emt 0:00:25]} Ke6 {[%emt 0:00:27]} 59. Qe3+ {[%emt 0:00:26]} Qe5 {[%emt 0:00:13]} 60. Qb6+ {[%emt 0:00:12]} Ke7 {[%emt 0:00:57]} 61. Qb7+ {[%emt 0:00:16]} Kf6 {[%emt 0:00:11]} 62. Qf3+ {[%emt 0:00:27]} Kg7 {[%emt 0:00:04]} 63. Qf2 {[%emt 0:00:19]} f6 {[%emt 0:01:57]} 64. Qa7+ {[%emt 0:00:07]} Kh6 {[%emt 0:00:43]} 65. Qf2 {[%emt 0:00:10]} g5 {[%emt 0:01:15]} 66. hxg5+ {[%emt 0:00:00]} Kxg5 {[%emt 0:00:13]} 67. Qd2+ {[%emt 0:00:00]} Kg6 {[%emt 0:00:10]} 68. Qc2+ {[%emt 0:00:00]} Kg7 {[%emt 0:00:02]} 69. Kg2 {[%emt 0:00:00]} Kh6 {[%emt 0:00:18]} 70. Qd2+ {[%emt 0:00:00]} Qg5 {[%emt 0:00:02]} 71. Qd4 {[%emt 0:00:00]} Qe5 {[%emt 0:00:32]} 72. Qd2+ {[%emt 0:00:00]} Kg6 {[%emt 0:00:08]} 73. Qc2+ {[%emt 0:00:00]} Qf5 {[%emt 0:00:20]} 74. Qe2 {[%emt 0:00:00]} Qd5+ {[%emt 0:00:08]} 75. Kh2 {[%emt 0:00:00]} Qe5 {[%emt 0:00:12]} 76. Qc2+ {[%emt 0:00:00]} Kf7 {[%emt 0:00:15]} 77. Kg2 {[%emt 0:00:00]} Ke7 {[%emt 0:00:23]} 78. Qf2 {[%emt 0:00:00]} Ke6 {[%emt 0:01:47]} 79. Qb6+ {[%emt 0:00:31]} Kf5 {[%emt 0:00:05]} 80. Qf2+ {[%emt 0:00:05]} Kg4 {[%emt 0:00:12]} 81. Qf3+ {[%emt 0:00:20]} Kg5 {[%emt 0:00:04]} 82. Qf2 {[%emt 0:00:10]} Qe4+ {[%emt 0:00:42]} 83. Kh2 {[%emt 0:00:30]} h4 {[%emt 0:00:59]} 84. Qd2+ {[%emt 0:00:21]} Kg6 {[%emt 0:00:11]} 85. Qf2 {[%emt 0:00:35]} Qe5 {[%emt 0:00:31]} 86. Qc2+ {[%emt 0:00:15]} Kg7 {[%emt 0:00:11]} 87. Kh1 {[%emt 0:00:51]} Qe1+ {[%emt 0:00:12]} 88. Kg2 {[%emt 0:00:10]} Qxg3+ {[%emt 0:00:04]} 0-1

[Event "Sydney Open 2019"]
[Site "Sydney"]
[Date "2019.04.27"]
[Round "8.5"]
[White "McClymont, Brodie"]
[Black "Solomon, Stephen J"]
[Result "1/2-1/2"]
[WhiteElo "2360"]
[BlackElo "2338"]
[PlyCount "83"]
[EventDate "2019.04.24"]
[EventType "swiss"]
[EventCountry "AUS"]
[TimeControl "5400+30"]
[WhiteClock "0:25:33"]
[BlackClock "0:29:03"]

1. e4 {[%emt 0:00:00]} e5 {[%emt 0:00:27]} 2. Nf3 {[%emt 0:00:00]} Nc6 {[%emt 0:00:18]} 3. Bb5 {[%emt 0:00:00]} a6 {[%emt 0:00:08]} 4. Ba4 {[%emt 0:00:00]} Nf6 {[%emt 0:00:15]} 5. O-O {[%emt 0:00:01]} Be7 {[%emt 0:00:06]} 6. Re1 {[%emt 0:00:06]} b5 {[%emt 0:00:13]} 7. Bb3 {[%emt 0:00:06]} d6 {[%emt 0:00:06]} 8. c3 {[%emt 0:00:07]} O-O {[%emt 0:00:07]} 9. h3 {[%emt 0:00:05]} Nb8 {[%emt 0:00:30]} 10. d4 {[%emt 0:00:31]} Nbd7 {[%emt 0:01:26]} 11. Nbd2 {[%emt 0:04:33]} Bb7 {[%emt 0:00:05]} 12. Bc2 {[%emt 0:00:10]} Re8 {[%emt 0:00:11]} 13. Nf1 {[%emt 0:01:21]} Bf8 {[%emt 0:00:10]} 14. Ng3 {[%emt 0:00:05]} g6 {[%emt 0:00:05]} 15. a4 {[%emt 1:27:01]} c5 {[%emt 0:00:30]} 16. d5 {[%emt 0:00:05]} c4 {[%emt 0:00:30]} 17. Bg5 {[%emt 0:00:05]} h6 {[%emt 0:00:30]} 18. Be3 {[%emt 0:00:05]} Nc5 {[%emt 0:00:30]} 19. Qd2 {[%emt 0:00:25]} h5 {[%emt 0:00:05]} 20. Bh6 {[%emt 0:00:21]} Bxh6 {[%emt 0:00:30]} 21. Qxh6 {[%emt 0:00:30]} Nh7 {[%emt 0:01:21]} 22. axb5 {[%emt 0:00:05]} axb5 {[%emt 0:00:30]} 23. Rxa8 {[%emt 0:00:30]} Bxa8 {[%emt 0:09:39]} 24. Ra1 {[%emt 0:00:00]} Bb7 {[%emt 0:01:10]} 25. h4 {[%emt 0:00:00]} Qf6 {[%emt 0:00:30]} 26. Ra5 {[%emt 0:00:00]} Ba6 {[%emt 0:00:30]} 27. Ng5 {[%emt 0:00:00]} Qg7 {[%emt 0:00:30]} 28. Qxg7+ {[%emt 0:00:00]} Kxg7 {[%emt 0:00:30]} 29. Nxh7 {[%emt 0:00:00]} Kxh7 {[%emt 0:00:30]} 30. Kf1 {[%emt 0:00:00]} Kg7 {[%emt 0:14:49]} 31. Ke2 {[%emt 0:00:00]} Kf6 {[%emt 0:00:30]} 32. Ke3 {[%emt 0:00:00]} Rb8 {[%emt 0:00:26]} 33. f3 {[%emt 0:00:00]} Rb6 {[%emt 0:10:17]} 34. Ne2 {[%emt 0:00:00]} Bc8 {[%emt 0:00:41]} 35. g3 {[%emt 0:00:00]} Bd7 {[%emt 0:00:05]} 36. Nc1 {[%emt 0:00:00]} b4 {[%emt 0:14:25]} 37. cxb4 {[%emt 0:00:00]} Rxb4 {[%emt 0:00:30]} 38. Ra2 {[%emt 0:00:00]} Ba4 {[%emt 0:09:48]} 39. Kd2 {[%emt 0:00:00]} Bxc2 {[%emt 0:00:05]} 40. Kxc2 {[%emt 0:00:00]} Na4 {[%emt 0:06:11]} 41. Ne2 {[%emt 0:00:00]} g5 {[%emt 0:05:18]} 42. Ng1 {[%emt 0:00:00]} 1/2-1/2

[Event "Sydney Open 2019"]
[Site "Sydney"]
[Date "2019.04.27"]
[Round "8.6"]
[White "Johansen, Darryl K"]
[Black "O`Chee, Kevin"]
[Result "1-0"]
[WhiteElo "2364"]
[BlackElo "2146"]
[PlyCount "61"]
[EventDate "2019.04.24"]
[EventType "swiss"]
[EventCountry "AUS"]
[TimeControl "5400+30"]
[WhiteClock "0:00:05"]
[BlackClock "0:00:06"]

1. Nf3 {[%emt 0:00:00]} d5 {[%emt 1:29:54]} 2. c4 {[%emt 1:30:45]} e6 {[%emt 0:00:48]} 3. d4 {[%emt 0:00:00]} Nf6 {[%emt 0:00:36]} 4. Nc3 {[%emt 0:00:23]} Be7 {[%emt 0:00:19]} 5. Bf4 {[%emt 0:01:14]} dxc4 {[%emt 0:00:00]} 6. e3 {[%emt 0:00:16]} Nd5 {[%emt 0:00:00]} 7. Bxc4 {[%emt 0:00:13]} Nxf4 {[%emt 0:01:21]} 8. exf4 {[%emt 0:01:05]} Nd7 {[%emt 0:00:00]} 9. Qe2 {[%emt 0:00:00]} Nf6 {[%emt 0:00:02]} 10. O-O {[%emt 0:00:45]} O-O {[%emt 0:00:00]} 11. Rfe1 {[%emt 0:00:00]} Re8 {[%emt 0:00:00]} 12. Rad1 {[%emt 0:00:00]} c6 {[%emt 0:02:20]} 13. Ne5 {[%emt 0:00:46]} Nd5 {[%emt 0:00:00]} 14. Qf3 {[%emt 0:00:00]} Nxc3 {[%emt 0:00:00]} 15. bxc3 {[%emt 0:01:56]} Bf6 {[%emt 0:01:43]} 16. f5 {[%emt 0:00:00]} Qc7 {[%emt 0:00:00]} 17. Ng4 {[%emt 0:00:00]} Bg5 {[%emt 0:00:49]} 18. g3 {[%emt 0:01:25]} h5 {[%emt 0:00:00]} 19. Ne5 {[%emt 0:00:23]} h4 {[%emt 0:00:41]} 20. Qh5 {[%emt 0:00:00]} Bf6 {[%emt 0:00:00]} 21. Re4 {[%emt 0:00:00]} b5 {[%emt 0:00:00]} 22. Ng4 {[%emt 0:00:00]} Qd8 {[%emt 0:00:00]} 23. Bb3 {[%emt 0:00:00]} hxg3 {[%emt 0:00:00]} 24. hxg3 {[%emt 0:02:39]} a5 {[%emt 0:01:07]} 25. Rde1 {[%emt 0:00:00]} Qe7 {[%emt 0:00:00]} 26. Nh6+ {[%emt 0:00:00]} gxh6 {[%emt 0:01:25]} 27. Qxh6 {[%emt 0:01:33]} Bg7 {[%emt 0:00:00]} 28. Rg4 {[%emt 0:00:29]} f6 {[%emt 0:02:29]} 29. Rxe6 {[%emt 0:00:30]} Bxe6 {[%emt 0:00:00]} 30. Bxe6+ {[%emt 0:00:00]} Kf8 {[%emt 0:01:21]} 31. Qh8+ {[%emt 0:01:02]} 1-0

[Event "Sydney Open 2019"]
[Site "Sydney"]
[Date "2019.04.28"]
[Round "9.1"]
[White "Song, Raymond"]
[Black "Fernandez, Daniel Howard"]
[Result "1/2-1/2"]
[WhiteElo "2329"]
[BlackElo "2467"]
[Annotator "RC"]
[PlyCount "131"]
[EventDate "2019.04.24"]
[EventType "swiss"]
[EventCountry "AUS"]
[TimeControl "5400+30"]
[WhiteClock "0:22:47"]
[BlackClock "0:16:23"]

1. e4 {[%emt 0:00:00]} g6 {[%emt 0:02:40]} 2. d4 {[%emt 0:00:00]} Bg7 {[%emt 0:00:03]} 3. Nc3 {[%emt 0:00:00]} a6 {[%emt 0:04:06]} 4. f4 {[%emt 0:00:00]} d6 {[%emt 0:02:00]} 5. Nf3 {[%emt 0:00:00]} Nd7 {[%emt 0:00:18]} 6. Bd3 {[%emt 0:00:18]} c5 {[%emt 0:04:03]} 7. Be3 {[%emt 0:05:53]} b5 {[%emt 0:03:04]} 8. e5 {[%emt 0:01:56]} Bb7 {[%emt 0:00:31]} 9. Be4 {[%emt 1:25:58]} Qc8 {[%emt 0:00:33]} 10. O-O {[%emt 0:00:00]} b4 {[%emt 0:06:48]} 11. Bxb7 {[%emt 0:00:00]} Qxb7 {[%emt 0:00:01]} 12. Ne2 {[%emt 0:00:00]} Nh6 {[%emt 0:00:42]} 13. c3 {[%emt 0:00:00]} O-O {[%emt 0:02:55]} 14. h3 {[%emt 0:00:00]} bxc3 {[%emt 0:05:24]} 15. bxc3 {[%emt 0:00:00]} Rfd8 {[%emt 0:00:08]} 16. Qe1 {[%emt 0:00:00]} Nb6 {[%emt 0:14:20]} 17. dxc5 {[%emt 0:00:00]} Nc4 {[%emt 0:01:07]} 18. Ng3 {[%emt 0:00:00]} Nxe3 {[%emt 0:00:29]} 19. Qxe3 {[%emt 0:00:00]} Qa7 {[%emt 0:01:23]} 20. Rfd1 {[%emt 0:00:00]} Rac8 {[%emt 0:01:45]} 21. Rd5 {[%emt 0:00:00]} dxc5 {[%emt 0:04:40]} 22. Rad1 {[%emt 0:00:00]} Rxd5 {[%emt 0:00:05]} 23. Rxd5 {[%emt 0:00:00]} e6 {[%emt 0:43:51]} 24. Rd2 {[%emt 0:00:00]} Nf5 {[%emt 0:00:00]} 25. Nxf5 {[%emt 0:00:00]} gxf5 {[%emt 0:00:00]} 26. g4 {[%emt 0:00:00]} fxg4 {[%emt 0:00:00]} 27. hxg4 {[%emt 0:00:00]} Qb7 {[%emt 0:00:00]} 28. Kg2 {[%emt 0:00:00]} Qb1 {[%emt 0:00:00]} 29. Ng5 {[%emt 0:00:00]} Qg6 {[%emt 0:00:00]} 30. Kf3 {[%emt 0:00:00]} h5 {[%emt 0:00:00]} 31. Qe4 {[%emt 0:00:00]} hxg4+ {[%emt 0:00:00]} 32. Kxg4 {[%emt 0:00:00]} Qxe4 {[%emt 0:00:00]} 33. Nxe4 {[%emt 0:00:00]} Bf8 {[%emt 0:00:00]} 34. f5 {[%emt 0:00:00]} exf5+ {[%emt 0:00:00]} 35. Kxf5 {[%emt 0:00:00]} Be7 {[%emt 0:00:00]} 36. c4 {[%emt 0:00:00]} Rc6 {[%emt 0:00:00]} 37. Nf6+ {[%emt 0:00:00]} Kf8 {[%emt 0:00:00]} 38. Rh2 {[%emt 0:00:00]} Bxf6 {[%emt 0:00:00]} 39. exf6 {[%emt 0:00:00]} Kg8 {[%emt 0:00:00]} 40. Rg2+ {[%emt 0:00:00]} Kh8 {[%emt 0:00:00]} 41. Rg7 {[%emt 0:00:00]} Rc7 {[%emt 0:00:00]} 42. Ke4 {[%emt 0:00:00]} Rd7 {[%emt 0:00:00]} 43. Ke5 {[%emt 0:00:00]} a5 {[%emt 0:00:00]} 44. a4 {[%emt 0:00:00]} Rb7 {[%emt 0:00:00]} 45. Rg1 {[%emt 0:00:00]} Rd7 {[%emt 0:00:00]} 46. Rb1 {[%emt 0:00:00]} Rd4 {[%emt 0:00:00]} 47. Rb5 {[%emt 0:00:00]} Rxc4 {[%emt 0:00:00]} 48. Rxa5 {[%emt 0:00:00]} Kh7 {[%emt 0:00:00]} 49. Ra8 {[%emt 0:00:00]} Rc1 {[%emt 0:00:00]} 50. a5 {[%emt 0:04:37]} c4 {[%emt 0:00:00]} 51. Kd4 {[%emt 0:04:13]} Kg6 {[%emt 0:00:00]} 52. a6 {[%emt 0:00:20]} Kxf6 {[%emt 0:00:00]} 53. Rc8 {[%emt 0:00:51]} Rd1+ {[%emt 0:00:00]} 54. Kc3 {[%emt 0:00:05]} Ra1 {[%emt 0:00:00]} 55. Rc6+ {[%emt 0:00:10]} Ke5 {[%emt 0:00:00]} 56. Kxc4 {[%emt 0:00:15]} f5 {[%emt 0:00:00]} 57. Kb5 {[%emt 0:00:20]} f4 {[%emt 0:00:00]} 58. Rc8 {[%emt 0:00:15]} f3 {[%emt 0:00:00]} 59. Rf8 {[%emt 0:00:05]} Ke4 {[%emt 0:00:00]} 60. Kb6 {[%emt 0:00:10]} Ke3 {[%emt 0:00:00]} 61. a7 {[%emt 0:00:26]} f2 {[%emt 0:00:00]} 62. Re8+ {[%emt 0:00:25]} Kd3 {[%emt 0:00:00]} 63. Rf8 {[%emt 0:00:05]} Ke2 {[%emt 0:00:00]} 64. Re8+ {[%emt 0:00:05]} Kd3 {[%emt 0:00:00]} 65. Rf8 {[%emt 0:00:05]} Ke2 {[%emt 0:00:00]} 66. Re8+ {[%emt 0:00:05]} 1/2-1/2

[Event "Sydney Open 2019"]
[Site "Sydney"]
[Date "2019.04.28"]
[Round "9.3"]
[White "Kunte, Abhijit"]
[Black "Johansen, Darryl K"]
[Result "1/2-1/2"]
[WhiteElo "2485"]
[BlackElo "2364"]
[PlyCount "25"]
[EventDate "2019.04.24"]
[EventType "swiss"]
[EventCountry "AUS"]
[TimeControl "5400+30"]
[WhiteClock "0:50:47"]
[BlackClock "0:56:34"]

1. d4 {[%emt 0:00:00]} e6 {[%emt 0:00:00]} 2. Nf3 {[%emt 0:00:28]} c5 {[%emt 0:00:02]} 3. g3 {[%emt 0:00:08]} b6 {[%emt 0:00:17]} 4. Bg2 {[%emt 0:05:57]} Bb7 {[%emt 0:00:11]} 5. dxc5 {[%emt 0:05:02]} Bxc5 {[%emt 0:05:08]} 6. c4 {[%emt 0:00:07]} Nf6 {[%emt 0:00:05]} 7. O-O {[%emt 0:00:06]} O-O {[%emt 0:00:08]} 8. Nc3 {[%emt 0:00:04]} Be7 {[%emt 0:18:55]} 9. Bf4 {[%emt 0:03:45]} Na6 {[%emt 0:02:50]} 10. Rc1 {[%emt 0:02:13]} Nc5 {[%emt 0:05:05]} 11. Qc2 {[%emt 0:01:39]} Qc8 {[%emt 0:08:49]} 12. Rfd1 {[%emt 0:02:44]} Nce4 {[%emt 0:03:43]} 13. Ne5 {[%emt 0:17:43]} 1/2-1/2

[Event "Sydney Open 2019"]
[Site "Sydney"]
[Date "2019.04.28"]
[Round "9.5"]
[White "Solomon, Stephen J"]
[Black "Lane, Gary W"]
[Result "1/2-1/2"]
[WhiteElo "2338"]
[BlackElo "2357"]
[PlyCount "97"]
[EventDate "2019.04.24"]
[EventType "swiss"]
[EventCountry "AUS"]
[TimeControl "5400+30"]
[WhiteClock "0:04:45"]
[BlackClock "0:33:07"]

1. d4 {[%emt 0:00:17]} d5 {[%emt 0:00:00]} 2. c4 {[%emt 0:00:10]} c6 {[%emt 0:00:00]} 3. Nf3 {[%emt 0:00:08]} Nf6 {[%emt 0:00:00]} 4. e3 {[%emt 0:00:08]} e6 {[%emt 0:00:26]} 5. Nc3 {[%emt 0:00:40]} Nbd7 {[%emt 0:00:08]} 6. Bd3 {[%emt 0:00:51]} Bd6 {[%emt 0:01:08]} 7. O-O {[%emt 0:02:27]} dxc4 {[%emt 0:03:19]} 8. Bxc4 {[%emt 0:00:13]} b5 {[%emt 0:00:05]} 9. Bd3 {[%emt 0:05:54]} O-O {[%emt 0:00:30]} 10. a4 {[%emt 0:08:01]} b4 {[%emt 0:07:21]} 11. Ne4 {[%emt 0:04:20]} Nxe4 {[%emt 0:01:00]} 12. Bxe4 {[%emt 0:00:07]} Bb7 {[%emt 0:00:05]} 13. Qe2 {[%emt 0:11:31]} a5 {[%emt 0:13:24]} 14. b3 {[%emt 0:04:14]} Nf6 {[%emt 0:20:28]} 15. Bd3 {[%emt 0:01:53]} Nd5 {[%emt 0:00:10]} 16. Bd2 {[%emt 0:06:01]} c5 {[%emt 0:06:05]} 17. dxc5 {[%emt 0:03:05]} Bxc5 {[%emt 0:00:35]} 18. Rac1 {[%emt 0:04:52]} Rc8 {[%emt 0:00:11]} 19. Rfd1 {[%emt 0:11:31]} Bd6 {[%emt 0:11:17]} 20. Rxc8 Qxc8 {[%emt 0:00:59]} 21. Bc4 Qa8 {[%emt 0:04:19]} 22. e4 Nf4 {[%emt 0:02:04]} 23. Bxf4 Bxf4 {[%emt 0:00:05]} 24. Ne1 Bc7 {[%emt 0:03:58]} 25. f3 Rd8 {[%emt 0:01:01]} 26. g3 h6 {[%emt 0:11:44]} 27. Rxd8+ Qxd8 {[%emt 0:00:05]} 28. Qd3 Bb6+ {[%emt 0:00:33]} 29. Kg2 Qe7 {[%emt 0:00:04]} 30. Qf1 Kh8 {[%emt 0:00:47]} 31. Nd3 Kh7 {[%emt 0:01:20]} 32. Qe2 Qd6 {[%emt 0:00:42]} 33. Qb2 Ba7 {[%emt 0:02:29]} 34. Qe2 g5 {[%emt 0:00:30]} 35. h3 Bb8 {[%emt 0:00:30]} 36. Qf2 f6 {[%emt 0:00:30]} 37. e5 fxe5 {[%emt 0:05:45]} 38. Nc5 Bc8 {[%emt 0:00:30]} 39. Qe3 Kg7 {[%emt 0:00:30]} 40. Bd3 Kf7 {[%emt 0:00:11]} 41. h4 Ba7 {[%emt 0:00:30]} 42. Ne4 Qc7 {[%emt 0:01:27]} 43. Nd6+ Kg8 {[%emt 0:00:30]} 44. Qxe5 Bb8 {[%emt 0:00:30]} 45. Ba6 Bd7 {[%emt 0:00:05]} 46. Bb5 Bc8 {[%emt 0:00:30]} 47. Ba6 Qxd6 {[%emt 0:00:25]} 48. Qxd6 Bxd6 {[%emt 0:00:30]} 49. Bxc8 1/2-1/2